bitfinex-derivatives/quotes_BNBF0:USTF0_20250220
["timestamp","ask_amount","ask_price","bid_price","bid_amount"]
[1740079897679,3.08985861,656.39,655.79,0.30497567]
[1740079897875,3.08985861,656.38,655.79,0.30497567]
[1740079898180,3.08985861,656.37,655.79,0.30497567]
[1740079898377,3.08985861,656.36,655.79,0.30497567]
[1740079898675,3.08985861,656.35,655.79,0.30497567]
[1740079898879,3.08985861,656.34,655.79,0.30497567]
[1740079899073,3.08985861,656.33,655.79,0.30497567]
[1740079899273,3.08985861,656.32,655.79,0.30497567]
[1740079899477,2.20403366,656.33,655.79,0.30497567]
[1740079899478,3.08985861,656.31,655.79,0.30497567]
[1740079899678,3.08985861,656.3,655.79,0.30497567]
[1740079899879,3.08985861,656.29,655.79,0.30497567]
[1740079900077,3.08985861,656.28,655.79,0.30497567]
[1740079900277,3.08985861,656.27,655.79,0.30497567]
[1740079900481,3.08985861,656.26,655.79,0.30497567]
[1740079900682,5.29389227,656.25,655.79,0.30497567]
[1740079900883,3.08985861,656.24,655.79,0.30497567]
[1740079901182,3.08985861,656.23,655.79,0.30497567]
[1740079901383,3.08985861,656.22,655.79,0.30497567]
[1740079901582,3.08985861,656.21,655.79,0.30497567]
[1740079901782,3.08985861,656.2,655.79,0.30497567]
[1740079902081,3.08985861,656.19,655.79,0.30497567]
[1740079902283,2.20403366,656.25,655.79,0.30497567]
[1740079902476,5.29170354,656.24,655.79,0.30497567]
[1740079902683,3.08766988,656.23,655.79,0.30497567]
[1740079902878,2.20403366,656.24,655.79,0.30497567]
[1740079903079,3.08759764,656.23,655.79,0.30497567]
[1740079903279,2.20403366,656.24,655.79,0.30497567]
[1740079903482,3.08772607,656.23,655.79,0.30497567]
[1740079903784,3.08776596,656.22,655.79,0.30497567]
[1740079903985,2.427,656.56,655.79,0.30497567]
[1740079904186,3.08779404,656.55,655.79,0.30497567]
[1740079904387,3.08779404,656.54,655.79,0.30497567]
[1740079904585,3.08779404,656.53,655.79,0.30497567]
[1740079904786,3.08779404,656.52,655.79,0.30497567]
[1740079904988,3.08779404,656.51,655.79,0.30497567]
[1740079905192,3.08779404,656.5,655.79,0.30497567]
[1740079905388,3.08779404,656.49,655.79,0.30497567]
[1740079905589,3.08779404,656.48,655.79,0.30497567]
[1740079905785,3.08779404,656.47,655.79,0.30497567]
[1740079905987,3.08779404,656.46,655.79,0.30497567]
[1740079906186,3.08779404,656.45,655.79,0.30497567]
[1740079906386,3.08779404,656.44,655.79,0.30497567]
[1740079906591,3.08779404,656.43,655.79,0.30497567]
[1740079906788,3.08779404,656.42,655.79,0.30497567]
[1740079906992,3.08779404,656.41,655.79,0.30497567]
[1740079907190,3.08779404,656.4,655.79,0.30497567]
[1740079907393,3.08779404,656.39,655.79,0.30497567]
[1740079907592,3.08779404,656.38,655.83,1.13081237]
[1740079907795,3.08779404,656.37,655.83,1.13081237]
[1740079907991,3.08779404,656.36,655.83,1.13081237]
[1740079908191,3.08779404,656.35,655.83,1.13081237]
[1740079908395,3.08779404,656.34,655.83,1.13081237]
[1740079908591,3.08779404,656.33,655.83,1.13081237]
[1740079908794,3.08779404,656.32,655.83,1.13081237]
[1740079908993,3.08779404,656.31,655.83,1.13081237]
[1740079909192,3.08779404,656.3,655.83,1.13081237]
[1740079909398,3.08779404,656.29,655.83,1.13081237]
[1740079909593,3.08779404,656.28,655.83,1.13081237]
[1740079909894,5.29040826,656.27,655.83,1.13081237]
[1740079910099,3.08779404,656.26,655.87,1.13081237]
[1740079910294,3.08779404,656.25,655.87,1.13081237]
[1740079910500,3.08779404,656.24,655.87,1.13081237]
[1740079910799,2.20261422,656.27,655.87,1.13081237]
[1740079910999,3.08795119,656.26,655.87,1.13081237]
[1740079911200,3.08795119,656.25,655.87,1.13081237]
[1740079911402,3.08795119,656.24,655.87,1.13081237]
[1740079911700,3.08793274,656.23,655.87,1.13081237]
[1740079911899,3.08793274,656.22,655.87,1.13081237]
[1740079912100,3.08793274,656.21,655.87,1.13081237]
[1740079912300,3.08793274,656.2,655.87,1.13081237]
[1740079912500,2.20261422,656.26,655.95,1.13081237]
[1740079912702,3.08802579,656.25,655.95,1.13081237]
[1740079912898,3.08802579,656.24,655.95,1.13081237]
[1740079913100,3.08802579,656.23,655.95,1.13081237]
[1740079913403,3.08802579,656.22,655.95,1.13081237]
[1740079913602,3.08802579,656.21,655.95,1.13081237]
[1740079913902,3.08802579,656.2,655.95,1.13081237]
[1740079914102,3.08802579,656.19,655.95,1.13081237]
[1740079914304,3.08802579,656.18,655.95,1.13081237]
[1740079914503,3.08802579,656.17,655.95,1.13081237]
[1740079914702,3.08802579,656.16,655.95,1.13081237]
[1740079914901,3.08802579,656.15,655.95,1.13081237]
[1740079915103,3.08802579,656.14,655.95,1.13081237]
[1740079915304,3.08802579,656.13,655.95,1.13081237]
[1740079915504,3.08802579,656.12,655.95,1.13081237]
[1740079915699,3.08802579,656.11,655.95,1.13081237]
[1740079915906,3.08802579,656.1,655.96,1.13081237]
[1740079916206,5.29064001,656.09,655.96,1.13081237]
[1740079916505,3.08802579,656.08,655.96,1.13081237]
[1740079916806,3.08802579,656.07,655.96,1.13081237]
[1740079917001,3.08802579,656.06,655.96,1.13081237]
[1740079917199,2.20261422,656.09,655.96,1.13081237]
[1740079917499,3.08745235,656.08,655.96,1.13081237]
[1740079917703,3.08745235,656.07,655.96,1.13081237]
[1740079917900,3.08745235,656.06,655.96,1.13081237]
[1740079918104,3.08745235,656.05,655.96,1.13081237]
[1740079918305,3.08745235,656.04,655.96,1.13081237]
[1740079918500,3.08745235,656.03,655.76,1.13613397]
[1740079918703,3.08745235,656.02,655.76,1.13613397]
[1740079918899,3.08745235,656.01,655.76,1.13613397]
[1740079919101,3.08745235,656.0,655.64,1.13613397]
[1740079919304,2.20261422,656.04,655.64,1.13613397]
[1740079919305,3.08745235,655.99,655.64,1.13613397]
[1740079919509,3.08745235,655.98,655.64,1.13613397]
[1740079919706,3.08745235,655.97,655.64,1.13613397]
[1740079919910,3.08745235,655.96,655.64,1.13613397]
[1740079920202,3.08745235,655.95,655.64,1.13613397]
[1740079920406,3.08745235,655.94,655.64,1.13613397]
[1740079920609,3.08745235,655.93,655.64,1.13613397]
[1740079920802,3.08745235,655.92,655.64,1.13613397]
[1740079921006,3.08745235,655.91,655.64,1.13613397]
[1740079921208,3.08745235,655.9,655.64,1.13613397]
[1740079921404,3.08745235,655.89,655.64,1.13613397]
[1740079921703,2.20261422,655.9,655.64,1.13613397]
[1740079921704,3.08745235,655.88,655.64,1.13613397]
[1740079922003,3.08745235,655.87,655.64,1.13613397]
[1740079922314,3.08745235,655.86,655.64,1.13613397]
[1740079922512,3.08745235,655.85,655.64,1.13613397]
[1740079922806,3.08745235,655.84,655.64,1.13613397]
[1740079923114,5.29006657,655.83,655.19,1.13613397]
[1740079923307,3.08745235,655.82,655.19,1.13613397]
[1740079923503,3.08745235,655.81,655.19,1.13613397]
[1740079923703,3.08745235,655.8,655.19,1.13613397]
[1740079923917,3.08745235,655.79,655.19,1.13613397]
[1740079924110,3.08745235,655.78,655.19,1.13613397]
[1740079924403,5.29006657,655.77,655.19,1.13613397]
[1740079924609,3.08745235,655.76,655.19,1.13613397]
[1740079924806,3.08745235,655.75,655.19,1.13613397]
[1740079925003,3.08745235,655.74,655.19,1.13613397]
[1740079925308,3.08745235,655.73,655.19,1.13613397]
[1740079925608,3.08745235,655.72,655.19,1.13613397]
[1740079925809,3.08745235,655.71,655.19,1.13613397]
[1740079926010,3.08745235,655.7,655.19,1.13613397]
[1740079926311,3.08745235,655.69,655.19,1.13613397]
[1740079926510,3.08745235,655.68,655.19,1.13613397]
[1740079926711,3.08745235,655.67,655.19,1.13613397]
[1740079926910,3.08745235,655.66,655.19,1.13613397]
[1740079927212,2.20261422,655.71,654.58,1.59120872]
[1740079927414,2.20261422,655.7,654.58,1.59120872]
[1740079927711,2.20261422,655.7,654.6,0.30553009]
[1740079932515,3.0207518,656.25,654.6,0.30553009]
[1740079932815,3.0207518,656.24,654.6,0.30553009]
[1740079933014,3.0207518,656.23,654.6,0.30553009]
[1740079933314,1.326,656.32,654.6,0.30553009]
[1740079933315,5.21079103,656.22,654.6,0.30553009]
[1740079933513,3.0207518,656.21,654.6,0.30553009]
[1740079933708,3.0207518,656.2,654.6,0.30553009]
[1740079933913,3.0207518,656.19,654.6,0.30553009]
[1740079934114,3.0207518,656.18,654.6,0.30553009]
[1740079934313,3.0207518,656.17,654.6,0.30553009]
[1740079934509,3.0207518,656.16,654.6,0.30553009]
[1740079934712,3.0207518,656.15,654.6,0.30553009]
[1740079934909,3.0207518,656.14,654.6,0.30553009]
[1740079935116,3.0207518,656.13,654.6,0.30553009]
[1740079935318,3.0207518,656.12,654.6,0.30553009]
[1740079935516,3.0207518,656.11,654.6,0.30553009]
[1740079935715,2.19003923,656.18,654.6,0.30553009]
[1740079935914,3.0205025,656.17,654.6,0.30553009]
[1740079936119,2.19003923,656.1,654.6,0.30553009]
[1740079937709,2.19003923,656.09,654.6,0.30553009]
[1740079938811,2.19003923,656.08,654.6,0.30553009]
[1740079940317,2.19003923,656.07,654.6,0.30553009]
[1740079940917,2.19003923,656.07,654.72,1.13613397]
[1740079941318,3.02117713,656.06,654.72,1.13613397]
[1740079941513,3.02117713,656.05,654.74,0.30546476]
[1740079941719,3.02117713,656.04,654.74,0.30546476]
[1740079941919,3.02117713,656.03,654.74,0.30546476]
[1740079942120,3.02117713,656.02,654.74,0.30546476]
[1740079942321,2.19003923,656.04,654.74,0.30546476]
[1740079943823,2.19003923,656.03,654.85,1.13613397]
[1740079944022,2.19003923,656.03,654.87,0.30540412]
[1740079945016,2.19003923,656.02,654.87,0.30540412]
[1740079946524,2.19003923,656.01,654.87,0.30540412]
[1740079948026,2.19003923,656.01,654.91,1.13613397]
[1740079948219,2.19003923,656.01,654.93,0.30537614]
[1740079948820,2.19003923,656.0,654.93,0.30537614]
[1740079950225,1.646,656.02,654.93,0.30537614]
[1740079950628,2.19136599,656.01,654.93,0.30537614]
[1740079952425,2.19136599,656.01,654.94,1.13613397]
[1740079952822,1.646,656.02,654.94,1.13613397]
[1740079953625,1.646,656.02,654.96,0.30536215]
[1740079956224,1.646,656.02,655.06,1.13613397]
[1740079957226,1.646,656.02,655.08,0.30530622]
[1740079961831,1.646,656.02,655.4,1.13613397]
[1740079962032,1.646,656.02,655.41,0.30515249]
[1740079963934,1.646,656.02,655.48,1.13613397]
[1740079964134,1.646,656.02,655.49,0.30511525]
[1740079967330,6.172,656.26,655.49,0.30511525]
[1740079967830,2.19452353,656.25,655.49,0.30511525]
[1740079969734,2.19452353,656.24,655.49,0.30511525]
[1740079971235,2.19452353,656.23,655.49,0.30511525]
[1740079971637,3.02955482,656.22,655.49,0.30511525]
[1740079971838,3.02955482,656.21,655.49,0.30511525]
[1740079972030,2.19452353,656.23,655.49,0.30511525]
[1740079972229,3.02958457,656.22,655.49,0.30511525]
[1740079972433,2.19452353,656.23,655.49,0.30511525]
[1740079972434,3.02958457,656.21,655.49,0.30511525]
[1740079972638,3.02958457,656.2,655.49,0.30511525]
[1740079972834,2.19452353,656.23,655.49,0.30511525]
[1740079973137,2.19452353,656.19,655.49,0.30511525]
[1740079973332,3.03016832,656.18,655.49,0.30511525]
[1740079973537,3.03016832,656.17,655.49,0.30511525]
[1740079973733,3.03016832,656.16,655.49,0.30511525]
[1740079974033,3.03016832,656.15,655.49,0.30511525]
[1740079974238,3.03016832,656.14,655.49,0.30511525]
[1740079974433,3.03016832,656.13,655.49,0.30511525]
[1740079974630,3.03016832,656.12,655.49,0.30511525]
[1740079974835,2.19452353,656.15,655.49,0.30511525]
[1740079974836,3.03016832,656.11,655.49,0.30511525]
[1740079975036,3.03016832,656.1,655.49,0.30511525]
[1740079975234,3.03016832,656.09,655.49,0.30511525]
[1740079975439,3.03016832,656.08,655.49,0.30511525]
[1740079975636,3.03016832,656.07,655.49,0.30511525]
[1740079975837,3.03016832,656.06,655.49,0.30511525]
[1740079976036,3.03016832,656.05,655.49,0.30511525]
[1740079976240,3.03016832,656.04,655.49,0.30511525]
[1740079976543,3.03016832,656.03,655.49,0.30511525]
[1740079976844,3.03016832,656.02,655.49,0.30511525]
[1740079977038,2.19452353,656.06,655.55,1.13613397]
[1740079977339,3.03074795,656.05,655.55,1.13613397]
[1740079977536,3.03074795,656.04,655.55,1.13613397]
[1740079977740,3.03074795,656.03,655.55,1.13613397]
[1740079977940,2.19452353,656.06,655.55,1.13613397]
[1740079978141,2.19452353,656.03,655.55,1.13613397]
[1740079979444,2.221,656.26,655.55,1.13613397]
[1740079979646,3.03045586,656.25,655.62,1.13613397]
[1740079979848,3.03045586,656.24,655.62,1.13613397]
[1740079980048,5.22715277,656.23,655.62,1.13613397]
[1740079980246,3.03045586,656.22,655.62,1.13613397]
[1740079980442,3.03045586,656.21,655.62,1.13613397]
[1740079980643,5.22715277,656.2,655.62,1.13613397]
[1740079980847,3.03045586,656.19,655.62,1.13613397]
[1740079981045,2.19669691,656.2,655.62,1.13613397]
[1740079982752,2.221,656.26,655.7,1.13613397]
[1740079983344,2.19666912,656.25,655.7,1.13613397]
[1740079984851,2.19666912,656.24,655.7,1.13613397]
[1740079985247,3.03146234,656.23,655.7,1.13613397]
[1740079985452,3.03146234,656.22,655.7,1.13613397]
[1740079985651,3.03146234,656.21,655.7,1.13613397]
[1740079985851,3.03146234,656.2,655.7,1.13613397]
[1740079986154,3.03146234,656.19,655.53,1.13613397]
[1740079986345,3.03146234,656.18,655.54,0.30509198]
[1740079986545,3.03146234,656.17,655.54,0.30509198]
[1740079986745,3.03530686,656.16,655.54,0.30509198]
[1740079986946,3.03530686,656.15,655.54,0.30509198]
[1740079987151,3.03530686,656.14,655.54,0.30509198]
[1740079987347,3.03530686,656.13,655.54,0.30509198]
[1740079987546,3.03530686,656.12,655.54,0.30509198]
[1740079987749,3.03530686,656.11,655.54,0.30509198]
[1740079987950,3.03530686,656.1,655.54,0.30509198]
[1740079988249,3.03530686,656.09,655.54,0.30509198]
[1740079988449,2.19666912,656.09,655.54,0.30509198]
[1740079989052,3.03773051,656.08,655.54,0.30509198]
[1740079989250,3.03773051,656.07,655.54,0.30509198]
[1740079989451,3.03773051,656.06,655.54,0.30509198]
[1740079989650,3.03773051,656.05,655.54,0.30509198]
[1740079989849,3.0386366,656.04,655.54,0.30509198]
[1740079990051,3.0386366,656.03,655.54,0.30509198]
[1740079990254,2.19666912,656.04,655.54,0.30509198]
[1740079990554,3.03941427,656.03,655.54,0.30509198]
[1740079990751,3.03941427,656.02,655.54,0.30509198]
[1740079991050,2.19666912,656.04,655.54,0.30509198]
[1740079991255,3.03947839,656.03,655.54,0.30509198]
[1740079991456,3.03947839,656.02,655.54,0.30509198]
[1740079991650,2.19666912,656.04,655.54,0.30509198]
[1740079991855,3.04033535,656.03,655.54,0.30509198]
[1740079992053,3.04033535,656.02,655.54,0.30509198]
[1740079992251,3.04033535,656.01,655.54,0.30509198]
[1740079992459,2.19666912,656.03,655.54,0.30509198]
[1740079992661,3.04145499,656.02,655.54,0.30509198]
[1740079992858,3.04145499,656.01,655.54,0.30509198]
[1740079993058,3.04145499,656.0,655.54,0.30509198]
[1740079993254,3.04145499,655.99,655.54,0.30509198]
[1740079993460,2.19666912,656.03,655.54,0.30509198]
[1740079993660,3.0423337,656.02,655.54,0.30509198]
[1740079993858,3.0423337,656.01,655.54,0.30509198]
[1740079994059,3.0423337,656.0,655.54,0.30509198]
[1740079994256,3.0423337,655.99,655.54,0.30509198]
[1740079994562,2.20536846,656.01,655.54,0.30509198]
[1740079994764,3.04258055,656.0,655.54,0.30509198]
[1740079995061,2.20536846,656.01,655.54,0.30509198]
[1740079995857,1.203,656.29,655.54,0.30509198]
[1740079996061,3.04298871,656.28,655.54,0.30509198]
[1740079996257,3.04298871,656.27,655.54,0.30509198]
[1740079996462,3.04298871,656.26,655.54,0.30509198]
[1740079996662,3.04298871,656.25,655.54,0.30509198]
[1740079996962,3.04298871,656.24,655.54,0.30509198]
[1740079997163,3.04298871,656.23,655.54,0.30509198]
[1740079997364,3.04298871,656.22,655.54,0.30509198]
[1740079997664,3.04298871,656.21,655.54,0.30509198]
[1740079997858,3.04298871,656.2,655.54,0.30509198]
[1740079998063,3.04298871,656.19,655.54,0.30509198]
[1740079998257,3.04298871,656.18,655.54,0.30509198]
[1740079998460,3.04298871,656.17,655.54,0.30509198]
[1740079998661,3.04298871,656.16,655.54,0.30509198]
[1740079998964,3.04298871,656.15,655.54,0.30509198]
[1740079999156,3.04298871,656.14,655.54,0.30509198]
[1740079999362,3.04452038,656.13,655.54,0.30509198]
[1740079999561,2.20614081,656.19,655.54,0.30509198]
[1740079999762,3.04455887,656.18,655.54,0.30509198]
[1740079999957,3.04455887,656.17,655.54,0.30509198]
[1740080000163,3.04455887,656.16,655.54,0.30509198]
[1740080000365,3.04455887,656.15,655.54,0.30509198]
[1740080000666,3.04455887,656.14,655.54,0.30509198]
[1740080000864,3.04481788,656.13,655.54,0.30509198]
[1740080001058,2.20614081,656.18,655.54,0.30509198]
[1740080001363,5.584,656.31,655.54,0.30509198]
[1740080001364,5.25093506,656.17,655.54,0.30509198]
[1740080001564,2.20614081,656.17,655.54,0.30509198]
[1740080001961,3.04498695,656.16,655.54,0.30509198]
[1740080002164,3.04498695,656.15,655.54,0.30509198]
[1740080002360,3.04498695,656.14,655.54,0.30509198]
[1740080002563,3.04498695,656.13,655.54,0.30509198]
[1740080002766,3.04498695,656.12,655.54,0.30509198]
[1740080002968,3.04498695,656.11,655.54,0.30509198]
[1740080003164,5.584,656.31,655.54,0.30509198]
[1740080003165,5.25112776,656.1,655.54,0.30509198]
[1740080003359,3.04498695,656.09,655.54,0.30509198]
[1740080003562,2.20614081,656.1,655.54,0.30509198]
[1740080003961,5.584,656.31,655.54,0.30509198]
[1740080004267,3.04532846,656.3,655.54,0.30509198]
[1740080004466,5.25270776,656.29,655.54,0.30509198]
[1740080004665,3.04532846,656.28,655.54,0.30509198]
[1740080004967,3.04532846,656.27,655.54,0.30509198]
[1740080005167,2.2073793,656.29,655.54,0.30509198]
[1740080005168,3.04532846,656.26,655.54,0.30509198]
[1740080005361,3.04532846,656.25,655.54,0.30509198]
[1740080005562,2.2073793,656.29,655.54,0.30509198]
[1740080005563,3.04532846,656.24,655.54,0.30509198]
[1740080005767,3.04532846,656.23,655.54,0.30509198]
[1740080005969,3.04532846,656.22,655.68,1.13613397]
[1740080006164,3.04532846,656.21,655.68,1.13613397]
[1740080006365,3.04532846,656.2,655.68,1.13613397]
[1740080006568,3.04532846,656.19,655.68,1.13613397]
[1740080006768,3.04532846,656.18,655.68,1.13613397]
[1740080006970,3.04532846,656.17,655.68,1.13613397]
[1740080007170,3.04532846,656.16,655.68,1.13613397]
[1740080007370,3.04532846,656.15,655.68,1.13613397]
[1740080007572,3.04532846,656.14,655.68,1.13613397]
[1740080007872,3.04532846,656.13,655.68,1.13613397]
[1740080008170,3.04532846,656.13,655.6,1.13613397]
[1740080008171,5.25270776,656.12,655.6,1.13613397]
[1740080008371,3.04532846,656.11,655.54,0.30509198]
[1740080008570,3.04532846,656.1,655.54,0.30509198]
[1740080008772,3.04532846,656.09,655.54,0.30509198]
[1740080008972,2.2073793,656.12,655.54,0.30509198]
[1740080008973,3.04532846,656.08,655.54,0.30509198]
[1740080009166,3.04532846,656.07,655.54,0.30509198]
[1740080009371,3.04532846,656.06,655.54,0.30509198]
[1740080009572,3.04532846,656.05,655.54,0.30509198]
[1740080009873,3.04532846,656.04,655.54,0.30509198]
[1740080010070,3.04532846,656.03,655.54,0.30509198]
[1740080010373,3.04532846,656.02,655.54,0.30509198]
[1740080010674,2.2073793,656.05,655.54,0.30509198]
[1740080010873,3.0468929,656.04,655.54,0.30509198]
[1740080011068,3.0468929,656.03,655.54,0.30509198]
[1740080011268,3.0468929,656.02,655.54,0.30509198]
[1740080011466,3.0468929,656.01,655.54,0.30509198]
[1740080011668,3.04698436,656.0,655.54,0.30509198]
[1740080011871,2.2073793,656.02,655.54,0.30509198]
[1740080012068,3.0470013,656.01,655.54,0.30509198]
[1740080012269,3.0470013,656.0,655.54,0.30509198]
[1740080012570,2.2073793,656.02,655.54,0.30509198]
[1740080012771,2.2073793,655.99,655.54,0.30509198]
[1740080012971,3.04702122,655.98,655.54,0.30509198]
[1740080013274,2.2073793,655.99,655.54,0.30509198]
[1740080013275,3.04702122,655.97,655.54,0.30509198]
[1740080013475,3.04702122,655.96,655.54,0.30509198]
[1740080013674,3.04702122,655.95,655.54,0.30509198]
[1740080013871,3.04702122,655.94,655.54,0.30509198]
[1740080014072,3.04702122,655.93,655.54,0.30509198]
[1740080014273,3.04702122,655.92,655.54,0.30509198]
[1740080014474,2.2073793,655.99,655.54,0.30509198]
[1740080014674,2.2073793,655.92,655.54,0.30509198]
[1740080016276,1.706,656.3,655.54,0.30509198]
[1740080016577,3.04581163,656.29,655.54,0.30509198]
[1740080016775,3.04581163,656.28,655.54,0.30509198]
[1740080016976,3.04581163,656.27,655.54,0.30509198]
[1740080017172,3.04581163,656.26,655.54,0.30509198]
[1740080017371,3.04581163,656.25,655.54,0.30509198]
[1740080017575,3.04581163,656.24,655.54,0.30509198]
[1740080017771,3.04581163,656.23,655.54,0.30509198]
[1740080017975,3.04581163,656.22,655.54,0.30509198]
[1740080018175,3.04581163,656.21,655.54,0.30509198]
[1740080018476,3.04581163,656.2,655.54,0.30509198]
[1740080018678,3.04581163,656.19,655.54,0.30509198]
[1740080018876,3.04581163,656.18,655.54,0.30509198]
[1740080019177,3.04581163,656.17,655.54,0.30509198]
[1740080019377,3.04581163,656.16,655.54,0.30509198]
[1740080019577,3.04581163,656.15,655.54,0.30509198]
[1740080019777,3.04581163,656.14,655.54,0.30509198]
[1740080019979,3.04581163,656.13,655.54,0.30509198]
[1740080020174,2.20785981,656.19,655.54,0.30509198]
[1740080020175,3.04581163,656.12,655.54,0.30509198]
[1740080020379,3.04581163,656.11,655.31,1.13613397]
[1740080020580,3.04581163,656.1,655.17,1.13613397]
[1740080020778,3.04581163,656.09,655.18,0.30525962]
[1740080020982,3.04581163,656.08,655.18,0.30525962]
[1740080021178,3.04581163,656.07,655.18,0.30525962]
[1740080021380,3.04581163,656.06,655.18,0.30525962]
[1740080021577,3.04581163,656.05,655.18,0.30525962]
[1740080021778,3.04581163,656.04,655.18,0.30525962]
[1740080021978,3.04581163,656.03,655.18,0.30525962]
[1740080022179,3.04581163,656.02,655.18,0.30525962]
[1740080022380,3.04581163,656.01,655.18,0.30525962]
[1740080022581,3.04581163,656.0,655.18,0.30525962]
[1740080022882,3.04581163,655.99,655.18,0.30525962]
[1740080023082,3.04581163,655.98,655.18,0.30525962]
[1740080023284,3.04581163,655.97,655.18,0.30525962]
[1740080023475,3.04581163,655.96,655.18,0.30525962]
[1740080023679,3.04581163,655.95,655.18,0.30525962]
[1740080023883,3.04581163,655.94,655.18,0.30525962]
[1740080024085,3.04581163,655.93,655.18,0.30525962]
[1740080024284,3.04581163,655.92,655.18,0.30525962]
[1740080024584,3.04581163,655.91,655.18,0.30525962]
[1740080024787,3.04581163,655.9,655.18,0.30525962]
[1740080024986,3.04581163,655.89,655.18,0.30525962]
[1740080025187,3.04581163,655.88,655.18,0.30525962]
[1740080025386,3.04581163,655.87,655.18,0.30525962]
[1740080025585,3.04581163,655.86,655.18,0.30525962]
[1740080025885,3.04581163,655.85,655.18,0.30525962]
[1740080026086,3.04581163,655.84,655.18,0.30525962]
[1740080026386,3.04581163,655.83,655.18,0.30525962]
[1740080026687,5.25367144,655.82,655.18,0.30525962]
[1740080026881,3.04581163,655.81,655.18,0.30525962]
[1740080027081,3.04581163,655.8,655.18,0.30525962]
[1740080027286,3.04581163,655.79,655.18,0.30525962]
[1740080027486,3.04581163,655.78,655.18,0.30525962]
[1740080027680,3.04581163,655.77,655.18,0.30525962]
[1740080027886,2.20785981,655.82,655.18,0.30525962]
[1740080027887,3.04581163,655.76,655.18,0.30525962]
[1740080028182,3.04581163,655.75,655.18,0.30525962]
[1740080028382,3.04581163,655.74,655.18,0.30525962]
[1740080028585,3.04581163,655.73,655.18,0.30525962]
[1740080028781,3.04581163,655.72,655.18,0.30525962]
[1740080028986,3.04581163,655.71,655.18,0.30525962]
[1740080029182,3.04581163,655.7,655.18,0.30525962]
[1740080029487,2.20785981,655.72,655.18,0.30525962]
[1740080029686,3.03573832,655.71,655.18,0.30525962]
[1740080029882,3.03573832,655.7,655.18,0.30525962]
[1740080030083,3.03571922,655.69,655.18,0.30525962]
[1740080030282,2.20785981,655.7,655.18,0.30525962]
[1740080031384,1.33,655.95,655.18,0.30525962]
[1740080031585,3.03443426,655.94,655.18,0.30525962]
[1740080031781,3.03443426,655.93,655.18,0.30525962]
[1740080031986,3.03443426,655.92,655.18,0.30525962]
[1740080032183,3.03443426,655.91,655.18,0.30525962]
[1740080032386,3.03443426,655.9,655.18,0.30525962]
[1740080032583,3.03443426,655.89,655.18,0.30525962]
[1740080032789,3.03443426,655.88,655.18,0.30525962]
[1740080033089,3.03443426,655.87,655.18,0.30525962]
[1740080033286,3.03443426,655.86,655.18,0.30525962]
[1740080033485,3.03443426,655.85,655.18,0.30525962]
[1740080033685,3.03443426,655.84,655.18,0.30525962]
[1740080033886,3.03443426,655.83,655.18,0.30525962]
[1740080034188,3.03443426,655.82,655.18,0.30525962]
[1740080034389,3.03443426,655.81,655.18,0.30525962]
[1740080034588,3.03443426,655.8,655.18,0.30525962]
[1740080034790,2.19997403,655.8,655.18,0.30525962]
[1740080036292,1.33,655.95,655.18,0.30525962]
[1740080036484,3.0323527,655.94,655.18,0.30525962]
[1740080036686,3.0323527,655.93,655.18,0.30525962]
[1740080036890,3.0323527,655.92,655.18,0.30525962]
[1740080037089,3.0323527,655.91,655.18,0.30525962]
[1740080037386,3.0323527,655.9,655.18,0.30525962]
[1740080037586,3.0323527,655.89,655.18,0.30525962]
[1740080037787,3.0323527,655.88,655.18,0.30525962]
[1740080037989,3.0323527,655.87,655.18,0.30525962]
[1740080038187,3.0323527,655.86,655.18,0.30525962]
[1740080038494,2.19828412,655.93,655.18,0.30525962]
[1740080038793,2.19828412,655.85,655.18,0.30525962]
[1740080039995,1.33,655.95,655.2,1.12197046]
[1740080040299,3.03223852,655.94,655.21,0.30524564]
[1740080040493,5.23041146,655.93,655.21,0.30524564]
[1740080040693,3.03223852,655.92,655.21,0.30524564]
[1740080040888,3.03223852,655.91,655.21,0.30524564]
[1740080041092,2.19817294,655.93,655.21,0.30524564]
[1740080041093,3.03223852,655.9,655.21,0.30524564]
[1740080041294,3.03223852,655.89,655.21,0.30524564]
[1740080041492,3.03223852,655.88,655.21,0.30524564]
[1740080041699,3.03223852,655.87,655.21,0.30524564]
[1740080041890,3.03223852,655.86,655.21,0.30524564]
[1740080042197,3.03276224,655.85,655.21,0.30524564]
[1740080042497,2.19817294,655.93,655.21,0.30524564]
[1740080042690,3.03318012,655.92,655.21,0.30524564]
[1740080042897,3.03318012,655.91,655.21,0.30524564]
[1740080043100,3.03318012,655.9,655.21,0.30524564]
[1740080043293,3.03318012,655.89,655.21,0.30524564]
[1740080043499,3.03318012,655.88,655.21,0.30524564]
[1740080043699,3.03318012,655.87,655.21,0.30524564]
[1740080043892,3.03318012,655.86,655.21,0.30524564]
[1740080044095,3.03318012,655.85,655.21,0.30524564]
[1740080044293,3.03318012,655.84,655.21,0.30524564]
[1740080044496,3.03318012,655.83,655.21,0.30524564]
[1740080044797,5.23225445,655.82,655.21,0.30524564]
[1740080044999,3.03318012,655.81,655.21,0.30524564]
[1740080045195,3.03318012,655.8,655.21,0.30524564]
[1740080045399,3.03318012,655.79,655.21,0.30524564]
[1740080045591,3.03318012,655.78,655.21,0.30524564]